[Event "AZE-ch Women 2020"]
[Site "Baku"]
[Date "2020.03.06"]
[Round "3.4"]
[White "Beydullayeva, Govhar"]
[Black "Mamedjarova, Zeinab"]
[Result "1-0"]
[ECO "A05"]
[WhiteElo "2237"]
[BlackElo "2278"]
[Annotator "ChessBase"]
[PlyCount "131"]
[EventDate "2020.03.04"]
[EventType "swiss"]
[EventCountry "AZE"]
[SourceTitle "playchess.com"]
[Source "ChessBase"]
[SourceQuality "1"]
[TimeControl "40/5400+30:1800+30"]

1. Nf3 {[%emt 0:00:00]} Nf6 {[%emt 0:00:00]} 2. c4 {[%emt 0:00:46]} e6 {[%emt 0:00:00]} 3. g3 {[%emt 0:00:04]} d5 {[%emt 0:00:00]} 4. Bg2 {[%emt 0:00:05]} Nbd7 {[%emt 0:01:34]} 5. b3 {[%emt 0:03:18]} Be7 {[%emt 0:03:46]} 6. Bb2 {[%emt 0:01:47]} O-O {[%emt 0:00:08]} 7. O-O {[%emt 0:00:05]} c6 {[%emt 0:03:41]} 8. d4 {[%emt 0:02:23]} b6 {[%emt 0:01:20]} 9. Qc2 {[%emt 0:00:32]} Ba6 {[%emt 0:03:05]} 10. Nbd2 {[%emt 0:01:38]} Rc8 {[%emt 0:03:53]} 11. e4 {[%emt 0:02:22]} dxe4 {[%emt 0:04:30]} 12. Nxe4 {[%emt 0:02:43]} Nxe4 {[%emt 0:02:15]} 13. Qxe4 {[%emt 0:00:05]} Nf6 {[%emt 0:42:23]} 14. Qc2 {[%emt 0:02:44]} Qc7 {[%emt 0:05:09]} 15. Rfd1 {[%emt 0:01:14]} Rfd8 {[%emt 0:00:05]} 16. Ne5 {[%emt 0:05:49]} Bb7 {[%emt 0:01:11]} 17. c5 {[%emt 0:13:32]} bxc5 {[%emt 0:04:03]} 18. dxc5 {[%emt 0:00:08]} Nd5 {[%emt 0:02:57]} 19. a3 {[%emt 0:10:58]} Ba6 20. Be4 {[%emt 0:04:22]} f5 {[%emt 0:13:14]} 21. Bg2 {[%emt 0:03:45]} Bf6 {[%emt 0:01:56]} 22. Re1 {[%emt 0:01:29]} Rb8 {[%emt 0:01:33]} 23. Rad1 {[%emt 0:11:23]} Qb7 {[%emt 0:00:30]} 24. b4 {[%emt 0:01:15]} Qc7 {[%emt 0:00:29]} 25. Nf3 {[%emt 0:10:21]} Bxb2 {[%emt 0:01:48]} 26. Qxb2 {[%emt 0:00:01]} Bc8 {[%emt 0:01:23]} 27. Qe5 {[%emt 0:00:55]} Qxe5 {[%emt 0:01:27]} 28. Nxe5 Bb7 {[%emt 0:00:07]} 29. Nc4 {[%emt 0:06:59]} Kf7 {[%emt 0:00:10]} 30. Re5 {[%emt 0:04:24]} Kf6 {[%emt 0:01:09]} 31. Rde1 {[%emt 0:00:35]} Bc8 {[%emt 0:01:06]} 32. Nd6 {[%emt 0:01:30]} Bd7 {[%emt 0:00:20]} 33. f4 {[%emt 0:07:48]} Nc7 {[%emt 0:00:35]} 34. Nc4 {[%emt 0:00:30]} Rbc8 {[%emt 0:00:38]} 35. Nd6 {[%emt 0:00:19]} Rb8 {[%emt 0:00:11]} 36. Nc4 {[%emt 0:00:03]} Rbc8 {[%emt 0:00:11]} 37. h3 {[%emt 0:01:14]} h6 {[%emt 0:00:59]} 38. Kf2 {[%emt 0:00:06]} g5 {[%emt 0:00:40]} 39. Nd6 {[%emt 0:00:26]} Rb8 {[%emt 0:00:18]} 40. Nc4 {[%emt 0:00:00]} gxf4 41. gxf4 {[%emt 0:00:11]} Be8 {[%emt 0:10:03]} 42. Nd6 {[%emt 0:05:34]} Bd7 {[%emt 0:01:30]} 43. Rd1 {[%emt 0:09:04]} a5 {[%emt 0:08:14]} 44. b5 {[%emt 0:07:14]} Rg8 {[%emt 0:12:47]} 45. b6 {[%emt 0:02:54]} Nd5 {[%emt 0:00:34]} 46. Bxd5 {[%emt 0:00:37]} cxd5 {[%emt 0:00:02]} 47. Rg1 {[%emt 0:00:38]} Rxg1 {[%emt 0:00:54]} 48. Kxg1 {[%emt 0:00:00]} Bc6 {[%emt 0:00:26]} 49. Kf2 {[%emt 0:00:11]} d4 {[%emt 0:00:11]} 50. Re1 {[%emt 0:00:12]} d3 {[%emt 0:00:53]} 51. Nc4 {[%emt 0:06:33]} Be4 {[%emt 0:00:39]} 52. Ke3 {[%emt 0:01:20]} Rc8 {[%emt 0:00:31]} 53. Kd4 {[%emt 0:00:35]} Rg8 {[%emt 0:00:29]} 54. Nd6 {[%emt 0:00:42]} d2 {[%emt 0:00:30]} 55. Nxe4+ {[%emt 0:01:11]} fxe4 {[%emt 0:00:02]} 56. Rd1 {[%emt 0:00:03]} Kf5 {[%emt 0:00:35]} 57. Rxd2 {[%emt 0:00:10]} e5+ {[%emt 0:00:48]} 58. fxe5 {[%emt 0:00:12]} Rd8+ {[%emt 0:00:07]} 59. Ke3 {[%emt 0:00:13]} Rb8 {[%emt 0:00:47]} 60. e6 {[%emt 0:01:23]} Kxe6 {[%emt 0:00:29]} 61. Kxe4 {[%emt 0:00:03]} a4 {[%emt 0:00:21]} 62. Rd6+ {[%emt 0:00:13]} Ke7 {[%emt 0:00:02]} 63. Rxh6 {[%emt 0:00:07]} Rd8 {[%emt 0:01:10]} 64. b7 {[%emt 0:00:21]} Rf8 {[%emt 0:00:40]} 65. c6 {[%emt 0:00:34]} Re8 {[%emt 0:00:28]} 66. Kd5 {[%emt 0:00:14]} 1-0

[Event "AZE-ch Women 2020"]
[Site "Baku"]
[Date "2020.03.09"]
[Round "5.5"]
[White "Abdulla, Khayala"]
[Black "Allahverdiyeva, Ayan"]
[Result "0-1"]
[ECO "C05"]
[WhiteElo "2276"]
[BlackElo "2053"]
[Annotator "ChessBase"]
[PlyCount "90"]
[EventDate "2020.03.04"]
[EventType "swiss"]
[EventCountry "AZE"]
[SourceTitle "playchess.com"]
[Source "ChessBase"]
[SourceQuality "1"]
[TimeControl "40/5400+30:1800+30"]

1. e4 e6 {[%emt 0:07:39]} 2. d4 {[%emt 0:00:00]} d5 {[%emt 0:04:15]} 3. Nd2 {[%emt 0:00:00]} Nf6 {[%emt 0:00:36]} 4. e5 {[%emt 0:00:00]} Nfd7 {[%emt 0:00:04]} 5. Bd3 {[%emt 0:00:06]} c5 {[%emt 0:00:05]} 6. c3 {[%emt 0:00:05]} b6 {[%emt 0:01:34]} 7. Ne2 {[%emt 0:03:38]} Ba6 {[%emt 0:00:36]} 8. Bc2 {[%emt 0:01:33]} Nc6 {[%emt 0:05:12]} 9. Nf3 {[%emt 0:01:09]} cxd4 {[%emt 0:06:57]} 10. cxd4 {[%emt 0:00:27]} Nb4 {[%emt 0:04:03]} 11. Bb1 {[%emt 0:03:31]} Rc8 {[%emt 0:06:28]} 12. a3 {[%emt 0:03:07]} Nc6 {[%emt 0:09:35]} 13. O-O {[%emt 0:01:06]} Be7 {[%emt 0:06:58]} 14. Re1 {[%emt 0:01:32]} O-O {[%emt 0:01:33]} 15. Nf4 {[%emt 0:02:38]} Na5 {[%emt 0:04:55]} 16. b3 {[%emt 0:08:47]} Re8 {[%emt 0:02:50]} 17. Bd2 {[%emt 0:07:50]} Nf8 {[%emt 0:00:12]} 18. Bb4 {[%emt 0:05:04]} Nc6 {[%emt 0:02:39]} 19. Qd2 {[%emt 0:01:33]} Rc7 {[%emt 0:08:34]} 20. Bxe7 {[%emt 0:05:37]} Qxe7 {[%emt 0:00:06]} 21. Nh5 {[%emt 0:01:58]} Ng6 {[%emt 0:04:56]} 22. b4 {[%emt 0:05:57]} Rec8 {[%emt 0:03:01]} 23. g3 {[%emt 0:06:42]} Nd8 {[%emt 0:02:24]} 24. Ng5 {[%emt 0:01:06]} Rc3 {[%emt 0:04:41]} 25. Kg2 {[%emt 0:11:31]} Bb5 {[%emt 0:07:25]} 26. f4 {[%emt 0:01:52]} Ba4 {[%emt 0:03:24]} 27. Ra2 {[%emt 0:00:56]} a5 {[%emt 0:01:28]} 28. Rb2 {[%emt 0:12:46]} h6 {[%emt 0:01:15]} 29. Nf3 {[%emt 0:02:41]} Bb3 {[%emt 0:00:29]} 30. f5 {[%emt 0:04:00]} exf5 {[%emt 0:00:10]} 31. Bxf5 {[%emt 0:00:10]} Ne6 {[%emt 0:00:09]} 32. Re3 {[%emt 0:02:43]} Rxe3 {[%emt 0:01:03]} 33. Qxe3 {[%emt 0:00:01]} Bd1 {[%emt 0:00:22]} 34. bxa5 {[%emt 0:02:04]} bxa5 {[%emt 0:00:05]} 35. Rb6 {[%emt 0:02:51]} Bc2 {[%emt 0:01:13]} 36. g4 {[%emt 0:02:25]} Nh4+ {[%emt 0:00:33]} 37. Nxh4 {[%emt 0:00:18]} Qxh4 {[%emt 0:00:04]} 38. Qg3 {[%emt 0:00:41]} Qg5 {[%emt 0:00:17]} 39. Bxe6 {[%emt 0:00:23]} fxe6 {[%emt 0:01:04]} 40. Rb7 {[%emt 0:00:00]} Qd2+ {[%emt 0:00:00]} 41. Kg1 {[%emt 0:09:33]} Be4 {[%emt 0:02:23]} 42. Rxg7+ {[%emt 0:05:46]} Kh8 {[%emt 0:00:12]} 43. Rf7 {[%emt 0:00:41]} Qxd4+ {[%emt 0:01:35]} 44. Kf1 {[%emt 0:00:37]} Qd1+ {[%emt 0:01:41]} 45. Qe1 {[%emt 0:02:23]} Bd3+ {[%emt 0:00:04]} 0-1

[Event "AZE-ch Women 2020"]
[Site "Baku"]
[Date "2020.03.10"]
[Round "6.2"]
[White "Rzali, Sabina"]
[Black "Mamedjarova, Turkan"]
[Result "0-1"]
[ECO "C60"]
[WhiteElo "1921"]
[BlackElo "2310"]
[Annotator "ChessBase"]
[PlyCount "132"]
[EventDate "2020.03.04"]
[EventType "swiss"]
[EventCountry "AZE"]
[SourceTitle "playchess.com"]
[Source "ChessBase"]
[SourceQuality "1"]
[TimeControl "40/5400+30:1800+30"]

1. e4 {[%emt 0:00:00]} e5 {[%emt 0:00:00]} 2. Nf3 {[%emt 0:00:00]} Nc6 {[%emt 0:00:02]} 3. Bb5 {[%emt 0:00:00]} g6 {[%emt 0:00:17]} 4. Bxc6 {[%emt 0:01:18]} dxc6 {[%emt 0:00:59]} 5. O-O {[%emt 0:00:57]} Bg7 {[%emt 0:01:57]} 6. d3 {[%emt 0:00:08]} Bg4 {[%emt 0:09:13]} 7. Nbd2 {[%emt 0:00:51]} Qe7 {[%emt 0:03:52]} 8. Nc4 {[%emt 0:05:54]} Bxf3 {[%emt 0:02:14]} 9. Qxf3 {[%emt 0:00:19]} Nf6 {[%emt 0:00:30]} 10. b3 {[%emt 0:01:32]} Nd7 {[%emt 0:02:25]} 11. a4 {[%emt 0:02:09]} a5 {[%emt 0:04:48]} 12. Ba3 {[%emt 0:05:44]} c5 {[%emt 0:01:33]} 13. Rfe1 {[%emt 0:02:57]} O-O {[%emt 0:02:11]} 14. Rad1 {[%emt 0:00:29]} Rfd8 {[%emt 0:01:46]} 15. Bb2 {[%emt 0:04:03]} c6 {[%emt 0:12:17]} 16. Ne3 {[%emt 0:04:26]} Nf8 {[%emt 0:03:36]} 17. Qg3 {[%emt 0:02:42]} h5 {[%emt 0:05:59]} 18. Nc4 {[%emt 0:10:05]} Nd7 {[%emt 0:01:22]} 19. Bc1 {[%emt 0:01:21]} Qe6 {[%emt 0:07:56]} 20. Bd2 {[%emt 0:08:46]} b6 {[%emt 0:00:25]} 21. Rf1 {[%emt 0:07:48]} Kh7 {[%emt 0:11:11]} 22. f4 {[%emt 0:02:19]} exf4 {[%emt 0:00:34]} 23. Qxf4 {[%emt 0:01:33]} Rf8 {[%emt 0:01:27]} 24. Rde1 {[%emt 0:05:49]} f6 {[%emt 0:02:43]} 25. Qg3 {[%emt 0:09:33]} Rab8 {[%emt 0:02:28]} 26. Rf2 {[%emt 0:05:13]} Rf7 {[%emt 0:09:59]} 27. Rfe2 {[%emt 0:05:04]} Rg8 {[%emt 0:03:01]} 28. Qc7 {[%emt 0:06:04]} f5 {[%emt 0:01:22]} 29. Qd6 {[%emt 0:02:08]} Bd4+ {[%emt 0:01:24]} 30. Be3 {[%emt 0:02:36]} Bxe3+ {[%emt 0:02:01]} 31. Rxe3 {[%emt 0:00:01]} Qxd6 {[%emt 0:00:29]} 32. Nxd6 {[%emt 0:00:02]} Rf6 {[%emt 0:00:06]} 33. Nc4 {[%emt 0:00:35]} f4 {[%emt 0:00:44]} 34. R3e2 {[%emt 0:02:29]} g5 {[%emt 0:00:36]} 35. Rf1 {[%emt 0:00:45]} h4 {[%emt 0:02:08]} 36. Ref2 {[%emt 0:01:43]} Ra8 {[%emt 0:02:32]} 37. Ra1 {[%emt 0:00:26]} Kg6 {[%emt 0:00:56]} 38. h3 {[%emt 0:00:24]} Re6 {[%emt 0:00:41]} 39. Rff1 {[%emt 0:00:27]} Rf8 {[%emt 0:00:54]} 40. Kf2 {[%emt 0:00:00]} Kf6 {[%emt 0:00:00]} 41. Kf3 {[%emt 0:01:32]} Ne5+ {[%emt 0:05:03]} 42. Ke2 {[%emt 0:08:56]} Rb8 {[%emt 0:01:40]} 43. Nxe5 {[%emt 0:01:40]} Kxe5 {[%emt 0:00:40]} 44. Kd2 {[%emt 0:02:59]} Rg6 {[%emt 0:02:52]} 45. Rf2 {[%emt 0:00:48]} g4 {[%emt 0:01:25]} 46. hxg4 {[%emt 0:00:33]} Rxg4 {[%emt 0:00:03]} 47. Kc3 {[%emt 0:01:24]} Rg3 {[%emt 0:01:50]} 48. Raf1 {[%emt 0:01:07]} Rf8 {[%emt 0:02:25]} 49. Kc4 {[%emt 0:03:40]} Rf7 {[%emt 0:03:09]} 50. Kc3 {[%emt 0:05:58]} Rg4 {[%emt 0:03:01]} 51. Rh1 {[%emt 0:00:51]} Rfg7 {[%emt 0:00:29]} 52. Rhf1 {[%emt 0:00:09]} b5 {[%emt 0:00:51]} 53. axb5 {[%emt 0:03:17]} cxb5 {[%emt 0:01:28]} 54. Kb2 {[%emt 0:00:12]} b4 {[%emt 0:03:13]} 55. Rf3 {[%emt 0:00:49]} Rf7 {[%emt 0:00:42]} 56. R3f2 {[%emt 0:00:36]} Rg3 {[%emt 0:01:18]} 57. Rh1 {[%emt 0:00:25]} f3 {[%emt 0:02:15]} 58. gxf3 {[%emt 0:04:25]} h3 {[%emt 0:00:13]} 59. Rhf1 {[%emt 0:00:22]} Kf4 {[%emt 0:00:44]} 60. Re1 {[%emt 0:00:58]} Rg2 {[%emt 0:01:32]} 61. Rff1 {[%emt 0:00:25]} Re7 {[%emt 0:00:50]} 62. Kc1 {[%emt 0:00:16]} h2 {[%emt 0:00:59]} 63. Kd1 {[%emt 0:00:39]} Reg7 {[%emt 0:01:08]} 64. Rh1 {[%emt 0:00:42]} R7g5 {[%emt 0:00:59]} 65. Ref1 {[%emt 0:00:31]} Rg1 {[%emt 0:00:31]} 66. Ke1 {[%emt 0:00:20]} Rxh1 {[%emt 0:00:19]} 0-1

[Event "AZE-ch Women 2020"]
[Site "Baku"]
[Date "2020.03.10"]
[Round "6.3"]
[White "Abdulla, Khayala"]
[Black "Ismayil, Malak"]
[Result "1/2-1/2"]
[ECO "B22"]
[WhiteElo "2276"]
[BlackElo "1974"]
[Annotator "ChessBase"]
[PlyCount "99"]
[EventDate "2020.03.04"]
[EventType "swiss"]
[EventCountry "AZE"]
[SourceTitle "playchess.com"]
[Source "ChessBase"]
[SourceQuality "1"]
[TimeControl "40/5400+30:1800+30"]

1. e4 {[%emt 0:04:07]} c5 {[%emt 0:02:14]} 2. c3 {[%emt 0:00:26]} d6 {[%emt 0:00:13]} 3. d4 {[%emt 0:00:35]} Nd7 {[%emt 0:09:41]} 4. Nf3 {[%emt 0:00:41]} g6 {[%emt 0:01:51]} 5. Bc4 {[%emt 0:04:17]} Nb6 {[%emt 0:03:25]} 6. Bxf7+ {[%emt 0:07:56]} Kxf7 {[%emt 0:01:18]} 7. dxc5 {[%emt 0:00:05]} h6 {[%emt 0:07:59]} 8. cxb6 {[%emt 0:02:13]} Qxb6 {[%emt 0:02:09]} 9. O-O {[%emt 0:00:37]} e5 {[%emt 0:00:53]} 10. Na3 {[%emt 0:02:11]} Be6 {[%emt 0:00:19]} 11. Be3 {[%emt 0:10:17]} Qc6 {[%emt 0:06:57]} 12. Nd2 {[%emt 0:01:08]} g5 {[%emt 0:00:46]} 13. Nc2 {[%emt 0:06:21]} a5 {[%emt 0:04:27]} 14. f3 {[%emt 0:03:12]} Nf6 {[%emt 0:03:57]} 15. Rf2 {[%emt 0:04:01]} Be7 {[%emt 0:05:07]} 16. Nf1 {[%emt 0:02:33]} Bd8 {[%emt 0:02:04]} 17. Rd2 {[%emt 0:01:48]} Bc7 {[%emt 0:00:10]} 18. Ng3 {[%emt 0:01:43]} Rad8 {[%emt 0:08:48]} 19. Bf2 {[%emt 0:03:08]} d5 {[%emt 0:02:47]} 20. exd5 {[%emt 0:01:51]} Nxd5 {[%emt 0:00:26]} 21. Qe1 {[%emt 0:03:11]} Nf4 {[%emt 0:02:03]} 22. Rxd8 {[%emt 0:12:50]} Rxd8 {[%emt 0:00:13]} 23. Qe4 {[%emt 0:00:26]} Qxe4 {[%emt 0:02:14]} 24. Nxe4 {[%emt 0:00:07]} Bf5 {[%emt 0:02:31]} 25. Ne3 {[%emt 0:04:39]} Bxe4 {[%emt 0:00:36]} 26. fxe4 {[%emt 0:00:02]} Rd2 {[%emt 0:00:44]} 27. Nc4 {[%emt 0:04:50]} Re2 {[%emt 0:06:00]} 28. Kf1 {[%emt 0:10:44]} Rxe4 {[%emt 0:14:20]} 29. Nd2 {[%emt 0:00:14]} Re2 {[%emt 0:01:03]} 30. Rd1 {[%emt 0:00:03]} e4 {[%emt 0:00:55]} 31. Nc4 {[%emt 0:01:06]} Ke6 {[%emt 0:04:51]} 32. g3 {[%emt 0:01:29]} Rc2 {[%emt 0:01:20]} 33. gxf4 {[%emt 0:02:10]} gxf4 {[%emt 0:00:05]} 34. Re1 {[%emt 0:00:34]} Kd5 {[%emt 0:02:15]} 35. b3 {[%emt 0:02:54]} Rxa2 {[%emt 0:00:59]} 36. Bb6 {[%emt 0:00:46]} Bxb6 {[%emt 0:01:39]} 37. Nxb6+ {[%emt 0:00:01]} Kc6 {[%emt 0:00:12]} 38. Nc4 {[%emt 0:00:18]} e3 {[%emt 0:00:44]} 39. Re2 {[%emt 0:01:13]} Ra1+ {[%emt 0:00:05]} 40. Kg2 {[%emt 0:00:00]} b5 {[%emt 0:00:00]} 41. Ne5+ {[%emt 0:08:41]} Kd5 {[%emt 0:02:03]} 42. Nd3 {[%emt 0:00:29]} Ke4 {[%emt 0:01:10]} 43. Nc5+ {[%emt 0:00:16]} Kf5 {[%emt 0:01:41]} 44. Rc2 {[%emt 0:09:17]} Rd1 {[%emt 0:02:40]} 45. Kf3 {[%emt 0:01:12]} Rf1+ {[%emt 0:00:39]} 46. Ke2 {[%emt 0:03:44]} Rh1 {[%emt 0:00:10]} 47. Kf3 {[%emt 0:03:22]} Rf1+ {[%emt 0:00:13]} 48. Kg2 {[%emt 0:00:09]} Rd1 {[%emt 0:00:08]} 49. Kf3 {[%emt 0:02:52]} Rf1+ {[%emt 0:00:28]} 50. Kg2 {[%emt 0:00:39]} 1/2-1/2

[Event "AZE-ch Women 2020"]
[Site "Baku"]
[Date "2020.03.10"]
[Round "6.4"]
[White "Allahverdiyeva, Ayan"]
[Black "Beydullayeva, Govhar"]
[Result "1-0"]
[ECO "C77"]
[WhiteElo "2053"]
[BlackElo "2237"]
[Annotator "ChessBase"]
[PlyCount "117"]
[EventDate "2020.03.04"]
[EventType "swiss"]
[EventCountry "AZE"]
[SourceTitle "playchess.com"]
[Source "ChessBase"]
[SourceQuality "1"]
[TimeControl "40/5400+30:1800+30"]

1. e4 {[%emt 0:00:47]} e5 {[%emt 0:00:07]} 2. Nf3 {[%emt 0:01:16]} Nc6 {[%emt 0:00:04]} 3. Bb5 {[%emt 0:00:23]} a6 {[%emt 0:00:09]} 4. Ba4 {[%emt 0:00:05]} Nf6 {[%emt 0:00:00]} 5. Nc3 {[%emt 0:00:34]} b5 {[%emt 0:04:15]} 6. Bb3 {[%emt 0:00:06]} Be7 {[%emt 0:00:36]} 7. a3 {[%emt 0:00:34]} d6 {[%emt 0:00:35]} 8. d3 {[%emt 0:00:40]} h6 {[%emt 0:08:19]} 9. Nd5 {[%emt 0:08:21]} Be6 {[%emt 0:04:46]} 10. O-O {[%emt 0:17:48]} O-O {[%emt 0:09:08]} 11. Re1 {[%emt 0:09:11]} Na5 {[%emt 0:09:40]} 12. Ba2 {[%emt 0:05:59]} Nxd5 {[%emt 0:01:56]} 13. exd5 {[%emt 0:01:43]} Bg4 {[%emt 0:00:44]} 14. b4 {[%emt 0:04:07]} Nb7 {[%emt 0:00:06]} 15. Bb2 {[%emt 0:07:27]} Bf6 {[%emt 0:18:18]} 16. Qe2 {[%emt 0:17:35]} Qc8 {[%emt 0:06:08]} 17. c4 {[%emt 0:04:20]} Bxf3 {[%emt 0:11:14]} 18. gxf3 {[%emt 0:04:15]} Qh3 {[%emt 0:02:16]} 19. Kh1 {[%emt 0:00:04]} Bg5 {[%emt 0:02:15]} 20. Rg1 {[%emt 0:00:04]} Bf4 {[%emt 0:02:10]} 21. Rg2 {[%emt 0:00:05]} f5 {[%emt 0:03:34]} 22. Rag1 {[%emt 0:00:59]} g5 {[%emt 0:04:06]} 23. cxb5 {[%emt 0:03:38]} axb5 {[%emt 0:00:12]} 24. d4 {[%emt 0:00:32]} Rae8 {[%emt 0:04:09]} 25. dxe5 {[%emt 0:01:14]} Bxe5 {[%emt 0:00:08]} 26. Bxe5 {[%emt 0:00:10]} Rxe5 {[%emt 0:00:03]} 27. Qxb5 {[%emt 0:00:07]} Qxf3 {[%emt 0:02:05]} 28. Qxb7 {[%emt 0:01:30]} Re2 {[%emt 0:04:14]} 29. Bc4 {[%emt 0:02:32]} Rxf2 {[%emt 0:01:13]} 30. Qb5 {[%emt 0:05:42]} Rxg2 {[%emt 0:00:30]} 31. Rxg2 {[%emt 0:00:03]} Qxa3 {[%emt 0:00:05]} 32. Bd3 {[%emt 0:00:52]} Qc1+ {[%emt 0:00:45]} 33. Rg1 {[%emt 0:01:19]} Qe3 {[%emt 0:01:28]} 34. Rf1 {[%emt 0:00:03]} Qe5 {[%emt 0:00:57]} 35. Qc4 {[%emt 0:02:41]} Rf7 {[%emt 0:00:16]} 36. b5 {[%emt 0:00:39]} Kg7 {[%emt 0:00:23]} 37. Qa2 {[%emt 0:00:13]} Qe3 {[%emt 0:00:37]} 38. Qc2 {[%emt 0:00:51]} f4 {[%emt 0:00:51]} 39. Bg6 {[%emt 0:00:00]} Rf8 {[%emt 0:00:00]} 40. Bh5 {[%emt 0:00:00]} Qe5 {[%emt 0:00:00]} 41. Qg6+ {[%emt 0:10:18]} Kh8 {[%emt 0:15:13]} 42. Qxh6+ {[%emt 0:00:25]} Kg8 {[%emt 0:00:03]} 43. Qe6+ {[%emt 0:04:04]} Kg7 {[%emt 0:00:02]} 44. Rc1 {[%emt 0:14:42]} Qxe6 45. dxe6 {[%emt 0:01:54]} Kf6 {[%emt 0:02:52]} 46. Rxc7 {[%emt 0:01:32]} Kxe6 {[%emt 0:00:22]} 47. Bg4+ {[%emt 0:00:28]} Ke5 {[%emt 0:03:32]} 48. b6 {[%emt 0:00:35]} f3 {[%emt 0:00:17]} 49. Kg1 {[%emt 0:00:25]} Rf4 {[%emt 0:04:39]} 50. Bd7 {[%emt 0:00:30]} Rb4 {[%emt 0:02:36]} 51. b7 {[%emt 0:00:03]} g4 {[%emt 0:01:41]} 52. Bc6 {[%emt 0:01:22]} Rb1+ {[%emt 0:02:57]} 53. Kf2 {[%emt 0:00:08]} Rb2+ {[%emt 0:00:08]} 54. Kg3 {[%emt 0:00:31]} Rg2+ {[%emt 0:02:09]} 55. Kh4 {[%emt 0:00:14]} Rxh2+ {[%emt 0:00:01]} 56. Kxg4 {[%emt 0:00:55]} f2 {[%emt 0:00:56]} 57. b8=Q {[%emt 0:01:23]} f1=Q {[%emt 0:00:18]} 58. Re7+ {[%emt 0:00:04]} Kd4 {[%emt 0:00:38]} 59. Qb4+ {[%emt 0:00:05] Ke5} 1-0

[Event "AZE-ch Women 2020"]
[Site "Baku"]
[Date "2020.03.12"]
[Round "8.5"]
[White "Mammadova, Gulnar"]
[Black "Beydullayeva, Govhar"]
[Result "0-1"]
[ECO "C44"]
[WhiteElo "2386"]
[BlackElo "2237"]
[Annotator "RC"]
[PlyCount "124"]
[EventDate "2020.03.04"]
[EventType "tourn"]
[EventCountry "AZE"]
[SourceTitle "playchess.com"]
[Source "ChessBase"]
[SourceQuality "1"]
[TimeControl "40/5400+30:1800+30"]

1. e4 {[%emt 0:00:05]} e5 {[%emt 0:00:00]} 2. Nf3 {[%emt 0:00:12]} Nc6 {[%emt 0:00:19]} 3. d4 {[%emt 0:01:08]} exd4 4. Nxd4 {[%emt 0:00:07]} Nf6 {[%emt 0:01:20]} 5. Nc3 {[%emt 0:03:58]} Bb4 {[%emt 0:01:35]} 6. Nxc6 bxc6 {[%emt 0:00:11]} 7. Bd3 {[%emt 0:00:36]} O-O {[%emt 0:00:54]} 8. O-O {[%emt 0:00:24]} d5 {[%emt 0:00:24]} 9. exd5 cxd5 {[%emt 0:00:16]} 10. Qf3 {[%emt 0:01:32]} c6 {[%emt 0:03:54]} 11. Bg5 {[%emt 0:01:15]} Be7 {[%emt 0:01:37]} 12. Rae1 {[%emt 0:00:52]} Re8 {[%emt 0:00:31]} 13. h3 {[%emt 0:01:46]} h6 {[%emt 0:06:16]} 14. Bf4 {[%emt 0:03:19]} Be6 {[%emt 0:02:22]} 15. Ne2 {[%emt 0:11:42]} Qb6 {[%emt 0:15:20]} 16. Be5 {[%emt 0:03:00]} Nd7 {[%emt 0:05:52]} 17. Bc3 {[%emt 0:03:03]} Bf6 {[%emt 0:05:41]} 18. Bxf6 {[%emt 0:04:27]} Nxf6 {[%emt 0:00:01]} 19. b3 {[%emt 0:00:41]} Bd7 {[%emt 0:11:47]} 20. Ng3 {[%emt 0:09:04]} Qa5 {[%emt 0:02:59]} 21. Rxe8+ {[%emt 0:00:37]} Rxe8 {[%emt 0:00:01]} 22. a4 {[%emt 0:00:58]} Qb4 {[%emt 0:06:53]} 23. Nf5 {[%emt 0:07:03]} Bxf5 {[%emt 0:00:53]} 24. Qxf5 {[%emt 0:02:27]} c5 {[%emt 0:02:13]} 25. Bb5 {[%emt 0:03:32]} Re6 {[%emt 0:00:56]} 26. Rd1 {[%emt 0:03:19]} g6 {[%emt 0:02:39]} 27. Qf3 {[%emt 0:00:56]} Kg7 {[%emt 0:06:15]} 28. Bf1 {[%emt 0:05:21]} h5 {[%emt 0:09:04]} 29. Qd3 {[%emt 0:06:44]} Ne4 {[%emt 0:05:59]} 30. Qb5 {[%emt 0:04:00]} Qc3 {[%emt 0:01:21]} 31. Qd3 {[%emt 0:03:38]} Qf6 {[%emt 0:00:05]} 32. Qf3 {[%emt 0:01:40]} Qxf3 {[%emt 0:05:44]} 33. gxf3 {[%emt 0:00:05]} Nc3 {[%emt 0:00:01]} 34. Ra1 {[%emt 0:05:49]} a5 {[%emt 0:00:10]} 35. Bd3 {[%emt 0:01:17]} Kf6 {[%emt 0:01:49]} 36. h4 {[%emt 0:01:01]} Ne2+ {[%emt 0:01:10]} 37. Kf1 {[%emt 0:00:56]} Nd4 {[%emt 0:00:15]} 38. Kg2 {[%emt 0:00:10]} Ne2 {[%emt 0:01:14]} 39. Kf1 {[%emt 0:00:23]} Nd4 {[%emt 0:00:29]} 40. Kg2 {[%emt 0:00:00]} Nf5 {[%emt 0:00:00]} 41. Rh1 {[%emt 0:02:52]} Ke5 {[%emt 0:02:38]} 42. c3 {[%emt 0:01:53]} Rb6 {[%emt 0:06:29]} 43. Bb5 {[%emt 0:07:43]} Rb8 {[%emt 0:05:36]} 44. c4 {[%emt 0:05:36]} d4 {[%emt 0:07:50]} 45. Re1+ {[%emt 0:00:32]} Kf6 {[%emt 0:03:06]} 46. Rh1 {[%emt 0:01:59]} Rb7 {[%emt 0:01:57]} 47. f4 {[%emt 0:01:56]} Re7 {[%emt 0:00:13]} 48. Kf3 {[%emt 0:00:24]} d3 {[%emt 0:01:19]} 49. Rd1 {[%emt 0:00:37]} Nxh4+ {[%emt 0:00:36]} 50. Kg3 {[%emt 0:00:01]} Nf5+ {[%emt 0:00:05]} 51. Kg2 {[%emt 0:00:14]} Nd4 {[%emt 0:01:06]} 52. Rxd3 {[%emt 0:00:06]} Kf5 {[%emt 0:02:14]} 53. Kg3 {[%emt 0:01:13]} Ne2+ {[%emt 0:00:21]} 54. Kf3 {[%emt 0:00:13]} Nd4+ {[%emt 0:00:03]} 55. Kg3 {[%emt 0:00:04]} Re1 {[%emt 0:00:30]} 56. f3 {[%emt 0:01:04]} h4+ {[%emt 0:01:17]} 57. Kf2 {[%emt 0:00:26]} Re2+ {[%emt 0:00:18]} 58. Kf1 {[%emt 0:00:05]} Re7 {[%emt 0:00:16]} 59. b4 {[%emt 0:02:08]} axb4 {[%emt 0:00:04]} 60. a5 {[%emt 0:00:03]} b3 {[%emt 0:00:57]} 61. Rd2 {[%emt 0:00:13]} Kxf4 {[%emt 0:01:04]} 62. a6 {[%emt 0:00:05]} h3 {[%emt 0:01:05]} 0-1